fUST/lending_fUST_20250927
["ID","MTS","AMOUNT","RATE_DAILY","PERIOD"]
[388005105,1758960444117,-4143.30622896,0.00025418,2]
[388005106,1758960444140,-1353.84756012,0.00026037,2]
[388005107,1758960444161,-150.29300848,0.000263,2]
[388005108,1758960444182,-157.39997217,0.000263,2]
[388005109,1758960444202,-352.53413726,0.00026348,2]
[388005110,1758960444222,-157.39997217,0.00026361,2]
[388005111,1758960444554,-832.69148831,0.00026362,2]
[388005112,1758960444573,-300.0,0.00026459,2]
[388005113,1758960444594,-1200.0,0.00026459,2]
[388005114,1758960444613,-500.0,0.0002646,2]
[388005115,1758960444635,-500.0,0.0002646,2]
[388005116,1758960444654,-500.0,0.0002646,2]
[388005117,1758960444672,-500.0,0.0002646,2]
[388005118,1758960444691,-500.0,0.0002646,2]
[388005119,1758960444712,-500.0,0.0002646,2]
[388005120,1758960444731,-361.84400001,0.0002646,2]
[388005121,1758960449730,300.0,0.000251,2]
[388005122,1758960452311,300.0,0.00024,2]
[388005123,1758960452599,300.0,0.000137,2]
[388005124,1758960454157,300.0,0.000137,2]
[388005125,1758960454562,300.0,0.000137,2]
[388005126,1758960479994,180.54,0.0001812,5]
[388005127,1758960480282,180.54,0.0001812,5]
[388005128,1758960480569,180.54,0.0001812,5]
[388005130,1758960545099,-204.62870398,0.00025415,2]
[388005131,1758960545121,-300.0,0.00026457,2]
[388005132,1758960545143,-500.0,0.00026458,2]
[388005133,1758960545168,-500.0,0.00026458,2]
[388005134,1758960545189,-500.0,0.00026458,2]
[388005135,1758960545212,-500.0,0.00026458,2]
[388005136,1758960545233,-500.0,0.00026458,2]
[388005137,1758960545255,-207.11631385,0.00026458,2]
[388005138,1758960545277,-500.0,0.00026458,2]
[388005139,1758960545298,-500.0,0.00026458,2]
[388005140,1758960545320,-500.0,0.00026458,2]
[388005141,1758960545343,-170.29944223,0.00026458,2]
[388005142,1758960545367,-500.0,0.00026458,2]
[388005143,1758960545392,-500.0,0.00026458,2]
[388005144,1758960545416,-500.0,0.00026458,2]
[388005145,1758960545438,-500.0,0.00026458,2]
[388005146,1758960545460,-500.0,0.00026458,2]
[388005147,1758960545483,-500.0,0.00026458,2]
[388005148,1758960545506,-500.0,0.00026458,2]
[388005149,1758960545527,-500.0,0.00026458,2]
[388005150,1758960545549,-500.0,0.00026458,2]
[388005151,1758960545571,-500.0,0.00026458,2]
[388005152,1758960545593,-500.0,0.00026458,2]
[388005153,1758960545615,-508.95358869,0.00026458,2]
[388005154,1758960545637,-500.0,0.00026458,2]
[388005155,1758960545658,-500.0,0.00026458,2]
[388005156,1758960545679,-500.0,0.00026458,2]
[388005157,1758960545701,-500.0,0.00026458,2]
[388005158,1758960545723,-500.0,0.00026458,2]
[388005159,1758960545747,-500.0,0.00026458,2]
[388005160,1758960545770,-500.0,0.00026458,2]
[388005161,1758960545791,-41080.44850264,0.00026459,2]
[388005162,1758960545813,-300.0,0.0002646,2]
[388005163,1758960545834,-300.0,0.0002646,2]
[388005164,1758960545856,-300.0,0.0002646,2]
[388005165,1758960545877,-1200.0,0.0002646,2]
[388005166,1758960545898,-5000.0,0.00026465,2]
[388005167,1758960545919,-236.47041824,0.00026528,2]
[388005168,1758960545938,-210.67685639,0.00026528,2]
[388005169,1758960545958,-41466.9785981,0.00026529,2]
[388005170,1758960545978,-500.0,0.00026573,2]
[388005171,1758960545998,-500.0,0.00026573,2]
[388005172,1758960546017,-500.0,0.00026573,2]
[388005173,1758960546037,-274.61452088,0.00026573,2]
[388005174,1758960546056,-501.75665528,0.00026573,2]
[388005175,1758960546075,-500.0,0.00026573,2]
[388005176,1758960546092,-500.0,0.00026573,2]
[388005177,1758960546110,-500.0,0.00026573,2]
[388005178,1758960546129,-500.0,0.00026573,2]
[388005179,1758960546148,-500.0,0.00026573,2]
[388005180,1758960546168,-500.0,0.00026573,2]
[388005181,1758960546188,-500.0,0.00026573,2]
[388005182,1758960546207,-500.7913327,0.00026573,2]
[388005183,1758960546226,-500.0,0.00026573,2]
[388005184,1758960546244,-501.18299892,0.00026573,2]
[388005185,1758960546264,-502.18387094,0.00026573,2]
[388005186,1758960546284,-500.0,0.00026573,2]
[388005187,1758960546304,-474.8624388,0.00026573,2]
[388005188,1758960546332,-500.0,0.00026573,2]
[388005189,1758960546353,-500.0,0.00026573,2]
[388005190,1758960546376,-500.0,0.00026573,2]
[388005191,1758960546396,-500.0,0.00026573,2]
[388005192,1758960546420,-500.0,0.00026573,2]
[388005193,1758960546442,-500.0,0.00026573,2]
[388005194,1758960546463,-1002.372828,0.00026827,2]
[388005195,1758960546486,-500.0,0.00026847,2]
[388005196,1758960546506,-666.0,0.00027019,2]
[388005197,1758960546529,-433.558395,0.00027058,30]
[388005198,1758960546550,-500.0,0.00027121,2]
[388005199,1758960546569,-498.1557788,0.00027121,2]
[388005200,1758960546588,-1000.0,0.00027121,2]
[388005201,1758960546610,-505.28775606,0.00027121,2]
[388005202,1758960546631,-1000.0,0.00027121,2]
[388005203,1758960546652,-1000.0,0.00027121,2]
[388005204,1758960546673,-673.13113534,0.00027121,2]
[388005205,1758960549103,-1299.71411924,0.00025315,2]
[388005206,1758960549313,-500.0,0.00026573,2]
[388005207,1758960549335,-326.86886466,0.00027121,2]
[388005208,1758960549356,-1000.0,0.00027121,2]
[388005209,1758960549380,-666.83542882,0.00027121,2]
[388005210,1758960549401,-520.77435939,0.00027121,2]
[388005211,1758960549424,-1000.0,0.00027121,2]
[388005212,1758960549445,-1000.0,0.00027121,2]
[388005213,1758960549464,-939.90423666,0.00027121,2]
[388005214,1758960549484,-1000.0,0.00027121,2]
[388005215,1758960549505,-1000.0,0.00027121,2]
[388005216,1758960549524,-1101.60735112,0.00027121,2]
[388005217,1758960549545,-1000.0,0.00027121,2]
[388005218,1758960549565,-1000.0,0.00027121,2]
[388005219,1758960549584,-500.0,0.0002716,2]
[388005220,1758960549605,-2174.80218,0.00027219,2]
[388005221,1758960549633,-501.2152562,0.00027367,2]
[388005222,1758960549675,-500.0,0.00027413,5]
[388005223,1758960549717,-500.0,0.00027413,3]
[388005224,1758960549752,-500.0,0.00027413,5]
[388005225,1758960549773,-500.0,0.00027413,5]
[388005226,1758960549792,-500.0,0.00027413,5]
[388005227,1758960549813,-500.0,0.00027413,5]
[388005228,1758960549833,-500.0,0.00027413,5]
[388005229,1758960549854,-7654.79976289,0.0002749,2]
[388005230,1758960549877,-664.80407506,0.0002749,2]
[388005231,1758960549897,-500.0,0.000275,5]
[388005232,1758960549917,-160.0,0.00027577,2]
[388005233,1758960549938,-1000.0,0.00027608,5]
[388005234,1758960549958,-263.8,0.00027608,5]
[388005235,1758960549978,-233.33187529,0.00027668,5]
[388005236,1758960549998,-1500.0,0.00027668,5]
[388005237,1758960550018,-500.0,0.00027668,5]
[388005238,1758960550039,-681.38273718,0.00027668,5]
[388005239,1758960550058,-1500.0,0.00027668,5]
[388005240,1758960550078,-1500.0,0.00027668,5]
[388005241,1758960550097,-1500.0,0.00027668,5]
[388005242,1758960550118,-1500.0,0.00027668,5]
[388005243,1758960550137,-1024.47369206,0.00027668,5]
[388005244,1758960550158,-1505.25426427,0.00027668,5]
[388005245,1758960550180,-509.1890694,0.00027668,5]
[388005246,1758960550200,-1000.0,0.00027708,2]
[388005247,1758960550221,-501.1278588,0.00027961,5]
[388005248,1758960550240,-500.0,0.00027961,5]
[388005249,1758960550260,-512.16892121,0.00027961,5]
[388005250,1758960550281,-1000.0,0.00027961,5]
[388005251,1758960550300,-1000.0,0.00027961,5]
[388005252,1758960550319,-1000.0,0.00028048,5]
[388005253,1758960550340,-260.0,0.00028125,2]
[388005254,1758960550361,-892.97,0.00028206,3]
[388005255,1758960550385,-446.48,0.00028206,3]
[388005256,1758960550405,-223.24,0.00028206,3]
[388005257,1758960550425,-669.77,0.00028206,3]
[388005258,1758960550448,-7654.79976289,0.00028206,2]
[388005259,1758960550467,-664.80407506,0.00028206,2]
[388005260,1758960550486,-2000.0,0.00028216,5]
[388005261,1758960550505,-2000.0,0.00028216,5]
[388005262,1758960550525,-2000.0,0.00028216,5]
[388005263,1758960550545,-2000.0,0.00028216,5]
[388005264,1758960550565,-1514.42337552,0.00028216,5]
[388005265,1758960550585,-199.0,0.00028219,14]
[388005266,1758960550604,-1500.0,0.00028256,2]
[388005267,1758960550624,-1500.0,0.00028509,5]
[388005268,1758960550645,-1155.67925175,0.00028509,5]
[388005269,1758960550672,-595.7192423,0.00028596,5]
[388005270,1758960550713,-1785.93,0.00028615,3]
[388005271,1758960550753,-420.0,0.00028619,2]
[388005272,1758960550793,-1680.0,0.00028621,2]
[388005273,1758960550822,-287.0,0.00028622,2]
[388005274,1758960550842,-420.0,0.00028622,2]
[388005275,1758960550862,-420.0,0.00028622,2]
[388005276,1758960550882,-255.54131746,0.00028645,2]
[388005277,1758960552168,-577.15017082,0.00028645,2]
[388005278,1758960552189,-253.106966,0.00028653,60]
[388005279,1758960552209,-360.0,0.00028673,2]
[388005280,1758960552230,-1401.0,0.00028749,2]
[388005281,1758960552251,-2500.0,0.00028764,5]
[388005282,1758960552270,-1504.77341385,0.00028764,5]
[388005283,1758960552291,-2500.0,0.00028764,5]
[388005284,1758960552312,-638.06765843,0.00028764,5]
[388005285,1758960552332,-2000.0,0.00028804,2]
[388005286,1758960552354,-7654.79976289,0.00028817,2]
[388005287,1758960552378,-664.80407506,0.00028817,2]
[388005288,1758960552397,-6767.00599627,0.00028827,2]
[388005345,1758960632561,-501.186414,0.00027687,2]
[388005347,1758960632571,-1112.774656,0.00028111,2]
[388005349,1758960632580,-190.23532649,0.00028707,2]
[388005351,1758960632590,-1785.90249837,0.00028707,2]
[388005353,1758960632599,-169.88488919,0.00028707,2]
[388005355,1758960632609,-305.79280054,0.00028707,2]
[388005357,1758960632618,-300.0,0.00028826,2]
[388005359,1758960632627,-167.0,0.00028826,2]
[388005361,1758960632636,-300.0,0.00028826,2]
[388005363,1758960632646,-300.0,0.00028826,2]
[388005365,1758960632655,-1200.0,0.00028826,2]
[388005367,1758960632664,-11185.8571637,0.00028827,2]
[388005369,1758960632675,-1330.8943918,0.00028827,2]
[388005371,1758960632684,-199.0,0.00028904,15]
[388005373,1758960632693,-2465.10560821,0.00028905,2]
[388005375,1758960632704,-34728.56332239,0.00028905,2]
[388005377,1758960632713,-7654.79976289,0.00028917,2]
[388005379,1758960632722,-664.80407506,0.00028917,2]
[388005381,1758960632731,-543.63164541,0.00028921,2]
[388005383,1758960632741,-165.52929277,0.00028926,2]
[388005385,1758960632751,-2000.0,0.00028927,120]
[388005387,1758960632760,-2000.0,0.00028927,120]
[388005389,1758960632769,-2000.0,0.00028927,120]
[388005391,1758960632778,-506.68811298,0.00028973,2]
[388005393,1758960632788,-500.0,0.00028973,5]
[388005395,1758960632797,-500.49537703,0.00028973,5]
[388005397,1758960632806,-233.76631357,0.00029,10]
[388005399,1758960632815,-500.0,0.00029095,5]
[388005401,1758960632824,-503.30584756,0.00029095,5]
[388005403,1758960632833,-159.31172092,0.00029095,5]
[388005405,1758960632843,-3000.0,0.00029312,5]
[388005407,1758960632851,-1512.19242142,0.00029312,5]
[388005409,1758960632860,-2500.0,0.00029352,2]
[388005411,1758960632870,-600.0,0.00029482,30]
[388005413,1758960632879,-503.46134377,0.00029521,5]
[388005415,1758960632888,-2037.87806206,0.00029522,2]
[388005417,1758960632897,-195.52842202,0.00029522,2]
[388005419,1758960632906,-351.59920847,0.00029522,2]
[388005421,1758960632915,-199.0,0.00029589,16]
[388005423,1758960632925,-1000.0,0.00029643,5]
[388005425,1758960632934,-203.61130141,0.00029681,2]
[388005427,1758960632943,-3049.27066575,0.0002986,5]
[388005429,1758960632952,-1512.21223018,0.000299,2]
[388005431,1758960632961,-7654.79976289,0.00029975,2]
[388005433,1758960632971,-664.80407506,0.00029975,2]
[388005435,1758960632980,-2804.16039822,0.0002998,2]
[388005451,1758960633214,-2082.8992701,0.0002998,2]
[388005481,1758960639498,-500.0,0.00028826,2]
[388005484,1758960639508,-612.1059543,0.00028826,2]
[388005485,1758960639518,-352.25549358,0.00028826,2]
[388005486,1758960639528,-925.98740644,0.00028905,2]
[388005487,1758960639538,-4462.4930508,0.00029608,2]
[388005488,1758960639547,-10422.53985748,0.0002998,2]
[388005489,1758960639557,-1329.60815012,0.0002998,2]
[388005490,1758960639566,-180.9495,0.0003,2]
[388005491,1758960639578,-1133.2,0.0003,2]
[388005492,1758960639588,-160.0,0.00030053,2]
[388005493,1758960639597,-151.0,0.000301,18]
[388005494,1758960639607,-510.1858937,0.00030136,15]
[388005495,1758960639617,-1000.0,0.00030136,120]
[388005496,1758960639627,-1133.2,0.0003014,2]
[388005497,1758960639636,-154.07,0.00030177,15]
[388005498,1758960639645,-1500.0,0.00030191,5]
[388005499,1758960639655,-1000.0,0.00030273,120]
[388005500,1758960639673,-203.17406537,0.00030273,17]
[388005501,1758960639686,-154.07,0.00030277,15]
[388005502,1758960639696,-154.07,0.00030377,15]
[388005503,1758960639706,-440.0,0.0003041,120]
[388005504,1758960639716,-154.09,0.00030477,15]
[388005505,1758960639726,-151.0,0.000306,10]
[388005506,1758960639736,-260.0,0.00030601,2]
[388005507,1758960639747,-2000.0,0.00030739,5]
[388005508,1758960639756,-759.33421957,0.000308,3]
[388005509,1758960639766,-814.31883937,0.000308,3]
[388005510,1758960639777,-665.44554607,0.000308,3]
[388005511,1758960639787,-1116.2,0.00030816,3]
[388005512,1758960639797,-558.1,0.00030816,3]
[388005513,1758960639807,-500.0,0.00030817,5]
[388005514,1758960639817,-18021.63495547,0.00030826,2]
[388005515,1758960639831,-320.04815959,0.00030826,2]
[388005516,1758960639843,-942.07443669,0.00030826,2]
[388005517,1758960639853,-336.0,0.00030861,2]
[388005518,1758960639863,-1521.0,0.00030959,2]
[388005519,1758960639874,-233.5379959,0.00030995,2]
[388005520,1758960639885,-151.0,0.00031,12]
[388005521,1758960639895,-420.0,0.00031106,3]
[388005522,1758960639904,-174.08577154,0.00031106,2]
[388005523,1758960639916,-245.91422846,0.00031106,2]
[388005524,1758960639925,-360.0,0.00031149,2]
[388005526,1758960639934,-1073.0,0.0003124,3]
[388005527,1758960639944,-1459.19323056,0.00031287,5]
[388005528,1758960639956,-885.96677516,0.00031287,5]
[388005529,1758960639968,-86.09706611,0.00031287,5]
[388005530,1758960639977,-3270.32836429,0.0003132,2]
[388005531,1758960639990,-4384.4713986,0.0003132,2]
[388005532,1758960640002,-664.80407506,0.0003132,2]
[388005533,1758960640011,-248.3990749,0.00031337,2]
[388005534,1758960640021,-504.9733117,0.00031365,5]
[388005535,1758960640031,-279.05,0.0003142,3]
[388005536,1758960640040,-480.01,0.0003143,10]
[388005538,1758960640050,-249.81203925,0.0003143,2]
[388005544,1758960640524,-8125.8315042,0.0003143,2]
[388005547,1758960640647,-1632.87379713,0.0003143,2]
[388005549,1758960640659,-15858.17560564,0.0003143,2]
[388005568,1758960643868,-8946.80266605,0.0003134,2]
[388005569,1758960643879,-64580.15900335,0.0003143,2]
[388005574,1758960647731,-1334.36848528,0.0003143,2]
[388005576,1758960659301,5000.0,0.00025205,2]
[388005577,1758960660822,627.98440412,0.00025204,2]
[388005578,1758960687963,204.62870398,0.00025128,2]
[388005580,1758960846396,-423.9183814,0.00028973,5]
[388005581,1758960848687,-47.17444778,0.00028973,5]
[388005582,1758960848710,-143.06087871,0.00028973,5]
[388005583,1758960964676,157.0,0.00023562,10]
[388005584,1758961314239,-2312970.54943547,0.00032927,20]
[388005585,1758961314270,-687029.45056453,0.00032927,20]
[388005586,1758961318615,-3000000.0,0.00032927,20]
[388005587,1758961323329,-488853.1012994,0.00032927,20]
[388005588,1758961323356,-900.16377419,0.00032927,25]
[388005589,1758961323382,-2000.0,0.00032927,30]
[388005590,1758961323408,-752.0,0.00032927,30]
[388005591,1758961454437,-228.527453,0.0002951,60]
[388005592,1758961454459,-195.3909284,0.00029626,30]
[388005593,1758961455205,-150.42966953,0.00030136,120]
[388005594,1758961455236,-169.62692056,0.00032,120]
[388005595,1758961455260,-103.86179131,0.00032,120]
[388005607,1758961646872,2507494.73492641,0.00032929,20]
[388005608,1758961647101,-1014.56469326,0.00026465,2]
[388005609,1758961651093,-2336.33070004,0.00026465,2]
[388005613,1758961667253,4010.3968919,0.00018,2]
[388005614,1758961667274,10000.01,0.00018,2]
[388005615,1758961667296,3626.1406934,0.00018,2]
[388005616,1758961671537,527.94578729,0.00018,2]
[388005617,1758961677525,463.4278492,0.00024774,2]
[388005621,1758961690122,5382.49567011,0.00021,5]
[388005622,1758961690145,4617.50432989,0.00021,5]
[388005625,1758961691127,419.21045963,0.00010618,2]
[388005626,1758961692830,2000.0,0.000125,2]
[388005628,1758961703625,2000.0,0.0002876,120]
[388005629,1758961706693,2963.29521048,0.00025,3]
[388005630,1758961706715,7776.68005974,0.00025,3]
[388005631,1758961707510,356.55743892,0.00022,2]
[388005632,1758961709158,1866.77250134,0.0002,2]
[388005633,1758961709181,10000.01,0.0002,2]
[388005634,1758961709203,2626.70059526,0.0002,2]
[388005635,1758961709678,7373.30940474,0.00024,2]
[388005636,1758961709699,895.81107062,0.00024,2]
[388005637,1758961711125,4611.23217161,0.00025,7]
[388005638,1758961711153,618.77258876,0.00025,2]
[388005639,1758961711237,2875.6338291,0.00017,2]
[388005640,1758961712584,998.56033991,0.00025,2]
[388005641,1758961712625,2329.62998677,0.00025,2]
[388005642,1758961713603,7670.38001323,0.0002,2]
[388005643,1758961713628,10000.01,0.0002,2]
[388005644,1758961713651,2329.60998677,0.0002,2]
[388005645,1758961713778,460.89,0.00015,2]
[388005646,1758961714111,7209.51001323,0.00025,2]
[388005647,1758961714134,10000.01,0.00025,2]
[388005648,1758961714158,2723.18050181,0.00025,2]
[388005649,1758961715009,1711.11752083,0.00024,2]
[388005650,1758961716502,4239.56116079,0.00018,2]
[388005651,1758961717501,1326.15081657,0.00023,3]
[388005652,1758961717522,10000.01,0.00023,3]
[388005653,1758961717541,8806.35490906,0.00023,3]
[388005654,1758961717950,1193.65509094,0.0002,2]
[388005655,1758961717973,7322.48196533,0.0002,2]
[388005656,1758961718330,556.72031642,0.00022,7]
[388005658,1758961719149,2120.80771825,0.0002,2]
[388005659,1758961719174,10000.01,0.0002,2]
[388005660,1758961719197,10000.01,0.0002,2]
[388005661,1758961719221,879.17228175,0.0002,2]
[388005662,1758961719896,163.3399967,0.00024,2]
[388005663,1758961719931,663.95392898,0.000245,2]
[388005664,1758961719994,8293.54379257,0.0002,2]
[388005665,1758961720016,10000.01,0.0002,2]
[388005666,1758961720038,10000.01,0.0002,2]
[388005667,1758961720060,10000.01,0.0002,2]
[388005669,1758961724252,260.15199531,0.00015,2]
[388005670,1758961724324,336.91243257,0.00015,5]
[388005671,1758961736109,-150.0,0.0001985,2]
[388005672,1758961745214,-300.0,0.00019999,2]
[388005673,1758961745530,-6927.40700963,0.0002,2]
[388005674,1758961745620,-10000.01,0.0002,2]
[388005675,1758961745711,-10000.01,0.0002,2]
[388005676,1758961745963,-10000.01,0.0002,2]
[388005677,1758961746089,-1181.31690852,0.0002,2]
[388005678,1758961746116,-7637.37618296,0.0002,2]
[388005679,1758961746212,-4629.73690905,0.0002,2]
[388005680,1758961746234,-740.5361819,0.0002,2]
[388005681,1758961746362,-2990.01102627,0.000203,2]
[388005682,1758961746395,-150.0,0.00020644,2]
[388005683,1758961746423,-200.0,0.00021438,2]
[388005684,1758961746492,-3319.98794746,0.000215,2]
[388005685,1758961746524,-2182.0596508,0.000215,2]
[388005686,1758961746552,-420.0,0.00021777,2]
[388005687,1758961746580,-2351.22385692,0.00023,2]
[388005688,1758961746667,-93.44298456,0.00023133,2]
[388005689,1758961755009,-406.55701544,0.00023133,2]
[388005690,1758961755038,-505.16391587,0.00023133,2]
[388005691,1758961755064,-1000.0,0.000235,2]
[388005692,1758961755092,-1000.0,0.00023681,2]
[388005693,1758961755124,-587.0,0.00023712,2]
[388005694,1758961755383,-458.79566688,0.00024,2]
[388005695,1758961755410,-950.82376399,0.00024229,2]
[388005696,1758961755490,-183.32927564,0.00024229,2]
[388005697,1758961755524,-48780.18260693,0.0002465,2]
[388005698,1758961755694,-183.32927564,0.0002465,2]
[388005699,1758961755706,-9633.35144872,0.0002465,2]
[388005700,1758961755718,-10000.01,0.0002465,2]
[388005701,1758961755752,-10000.01,0.0002465,2]
[388005702,1758961755775,-10000.01,0.0002465,2]
[388005703,1758961755787,-10000.01,0.0002465,2]
[388005704,1758961755916,-10000.01,0.0002465,2]
[388005705,1758961756036,-3598.32219534,0.0002465,2]
[388005706,1758961760093,-6642.08496835,0.000258,2]
[388005707,1758961760116,-823.0,0.0002582,2]
[388005708,1758961760134,-405.34864,0.00025974,2]
[388005709,1758961760152,-113.15039047,0.00026,2]
[388005710,1758961782279,202.83421566,0.00025205,14]
[388005711,1758961782305,32.54990986,0.00025205,14]
[388005712,1758961784877,8191.46333767,0.00032901,120]
[388005744,1758961832609,-560.16633354,0.00026,2]
[388005746,1758961832664,-671.96876116,0.00026,2]
[388005749,1758961832676,-402.92,0.00026,2]
[388005751,1758961833311,-112.72941036,0.00026,2]
[388005807,1758961838975,-1144.83584057,0.00026,2]
[388005809,1758961838985,-161.0,0.00026,5]
[388005811,1758961838995,-1649.1046067,0.00026465,2]
[388005812,1758961839005,-1200.0,0.0002697,2]
[388005814,1758961839016,-300.0,0.00027499,2]
[388005816,1758961839026,-300.0,0.00027499,2]
[388005818,1758961839035,-300.0,0.00027499,2]
[388005820,1758961839044,-300.0,0.00027499,2]
[388005822,1758961839053,-500.0,0.00027499,2]
[388005824,1758961839063,-209.65,0.00027499,2]
[388005826,1758961839073,-500.0,0.00027499,2]
[388005828,1758961839084,-500.0,0.00027499,2]
[388005830,1758961839093,-500.0,0.00027499,2]
[388005832,1758961839104,-392.35275637,0.00027499,2]
[388005834,1758961839114,-500.0,0.00027499,2]
[388005836,1758961839127,-590.46305356,0.00027499,2]
[388005838,1758961839137,-523.45496549,0.00027499,2]
[388005840,1758961839146,-500.0,0.00027499,2]
[388005842,1758961839155,-356.73001548,0.00027499,2]
[388005844,1758961839164,-430.10839359,0.00027499,2]
[388005846,1758961839174,-27158.33890098,0.000275,2]
[388005848,1758961839184,-383.51010718,0.00027752,2]
[388005850,1758961839194,-4000.0,0.0002876,5]
[388005852,1758961839204,-151.09476238,0.00028772,2]
[388005854,1758961839213,-690.31819292,0.00028783,2]
[388005856,1758961839222,-166.7522936,0.00028889,2]
[388005858,1758961839231,-500.0,0.00028973,5]
[388005860,1758961839240,-500.0,0.00028973,5]
[388005862,1758961839249,-500.0,0.00028973,5]
[388005864,1758961839258,-500.0,0.00028973,2]
[388005865,1758961839267,-190.28680251,0.00028973,5]
[388005867,1758961839276,-500.0,0.00028973,5]
[388005869,1758961839285,-500.0,0.00028973,5]
[388005871,1758961839295,-500.0,0.00028973,5]
[388005873,1758961839309,-500.0,0.00028973,5]
[388005875,1758961839319,-500.0,0.00028973,5]
[388005877,1758961839328,-501.32199642,0.00028973,5]
[388005879,1758961839338,-500.0,0.00028973,5]
[388005881,1758961839347,-500.0,0.00028973,5]
[388005883,1758961839357,-150.0,0.00028973,5]
[388005885,1758961839367,-331.91802521,0.00028973,2]
[388005886,1758961839376,-500.0,0.00028973,5]
[388005887,1758961839386,-500.0,0.00028973,5]
[388005888,1758961839395,-500.0,0.00028973,5]
[388005889,1758961839405,-507.198,0.00028973,120]
[388005890,1758961839414,-327.85974837,0.00028988,2]
[388005891,1758961839424,-372.38127,0.00028988,2]
[388005892,1758961839433,-76376.3814319,0.00028989,2]
[388005893,1758961839443,-100000.0,0.0002899,2]
[388005894,1758961839452,-243.31,0.00029,3]
[388005895,1758961839461,-500.0,0.00029,3]
[388005896,1758961839470,-166.75229359,0.00029109,2]
[388005897,1758961839479,-300.0,0.0002911,5]
[388005898,1758961839488,-1200.0,0.0002923,2]
[388005899,1758961839497,-150.39697451,0.00029247,5]
[388005900,1758961839506,-500.0,0.00029274,3]
[388005901,1758961839515,-1280.0,0.00029287,2]
[388005902,1758961839525,-166.75229359,0.00029328,2]
[388005903,1758961839534,-11707.87073325,0.00029373,2]
[388005904,1758961839543,-2432.13,0.00029417,3]
[388005905,1758961839552,-52258.605849,0.00029427,2]
[388005906,1758961839562,-4227.40909478,0.00029427,2]
[388005907,1758961839571,-52258.605849,0.00029428,2]
[388005908,1758961839581,-4227.40909478,0.00029428,2]
[388005909,1758961839590,-50000.0,0.00029437,2]
[388005910,1758961839599,-500.0,0.00029437,10]
[388005911,1758961839609,-12964.349309,0.00029438,2]
[388005912,1758961839618,-500.0,0.00029473,5]
[388005913,1758961839627,-161.09735592,0.00029473,5]
[388005915,1758961839637,-503.64207553,0.00029473,5]
[388005917,1758961839647,-524.3249575,0.00029473,5]
[388005919,1758961839655,-263.69267931,0.00029473,5]
[388005921,1758961839665,-501.11267338,0.00029473,5]
[388005923,1758961839674,-535.42504572,0.00029473,5]
[388005925,1758961839683,-500.0,0.00029473,5]
[388005927,1758961839693,-500.0,0.00029473,5]
[388005929,1758961839702,-500.0,0.00029473,5]
[388005931,1758961839712,-150.0,0.00029473,5]
[388005933,1758961839722,-293.98269222,0.00029473,5]
[388005935,1758961839731,-501.72847745,0.00029473,5]
[388005937,1758961839740,-500.0,0.00029473,5]
[388005939,1758961839750,-500.42837935,0.00029473,5]
[388005941,1758961839759,-508.6412222,0.00029473,5]
[388005943,1758961839768,-500.0,0.00029473,5]
[388005945,1758961839778,-212.02780329,0.00029473,5]
[388005947,1758961839787,-500.0,0.00029473,5]
[388005950,1758961839797,-500.0,0.00029473,5]
[388005951,1758961839806,-508.94624874,0.00029473,5]
[388005953,1758961839816,-500.0,0.00029473,5]
[388005955,1758961839825,-500.0,0.00029473,5]
[388005957,1758961839834,-500.0,0.00029473,5]
[388005959,1758961839844,-430.57133999,0.00029473,5]